fUSD/lending_fUSD_20260129
["ID","MTS","AMOUNT","RATE_DAILY","PERIOD"]
[403953371,1769689842240,-150.0,0.00016871,2]
[403953372,1769689842249,-150.0,0.00016871,2]
[403953373,1769689842258,-152.64052045,0.00016871,2]
[403953374,1769689842267,-597.0,0.00016871,2]
[403953375,1769689842276,-500.0,0.00016871,2]
[403953376,1769689842285,-500.0,0.00016871,2]
[403953377,1769689842297,-150.0,0.00016871,2]
[403953378,1769689842309,-479.0,0.00016871,2]
[403953379,1769689842320,-153.98209537,0.00016871,2]
[403953380,1769689842330,-500.0,0.00016871,2]
[403953381,1769689842339,-204.59716346,0.00016871,2]
[403953382,1769689842348,-500.0,0.00016871,2]
[403953383,1769689842357,-500.0,0.00016871,2]
[403953384,1769689842367,-500.0,0.00016871,2]
[403953385,1769689842375,-500.0,0.00016871,2]
[403953386,1769689842384,-500.0,0.00016871,2]
[403953387,1769689842394,-500.0,0.00016871,2]
[403953388,1769689842402,-500.0,0.00016871,2]
[403953389,1769689842555,-431.0,0.00016871,2]
[403953390,1769689842567,-500.0,0.00016887,2]
[403953391,1769689842576,-200.0,0.00016887,2]
[403953392,1769689842586,-151.0,0.00016897,2]
[403953393,1769689842595,-26400.0,0.000169,6]
[403953394,1769689842604,-150.0,0.00016926,2]
[403953395,1769689842613,-500.0,0.00016926,2]
[403953396,1769689842623,-547.35480279,0.00016926,2]
[403953397,1769689842632,-500.0,0.00016926,2]
[403953398,1769689842642,-500.0,0.00016926,2]
[403953399,1769689842652,-150.0,0.00016926,2]
[403953400,1769689842661,-150.0,0.00016926,2]
[403953401,1769689842670,-500.0,0.00016926,2]
[403953403,1769689842679,-500.0,0.00016926,2]
[403953404,1769689842688,-150.0,0.00016926,2]
[403953405,1769689842697,-277.46058828,0.00016926,2]
[403953406,1769689842706,-500.0,0.00016926,2]
[403953407,1769689842717,-210.58495548,0.00016926,2]
[403953408,1769689842727,-150.0,0.00016926,2]
[403953409,1769689842739,-597.0,0.00016926,2]
[403953410,1769689842748,-500.0,0.00016926,2]
[403953411,1769689842757,-500.0,0.00016926,2]
[403953412,1769689842766,-150.0,0.00016926,2]
[403953413,1769689842775,-479.0,0.00016926,2]
[403953414,1769689842784,-259.23494568,0.00016926,2]
[403953415,1769689842793,-500.0,0.00016926,2]
[403953416,1769689842802,-500.0,0.00016926,2]
[403953417,1769689842812,-350.0,0.00016926,2]
[403953418,1769689842821,-500.0,0.00016926,2]
[403953419,1769689842830,-500.0,0.00016926,2]
[403953420,1769689842840,-500.0,0.00016926,2]
[403953421,1769689842850,-500.0,0.00016926,2]
[403953422,1769689842861,-431.0,0.00016926,2]
[403953423,1769689842870,-2779.16558709,0.00016926,2]
[403953424,1769689842881,-1023.81512056,0.00016926,2]
[403953425,1769689842890,-341.61275203,0.00016926,2]
[403953426,1769689842899,-25288.45216244,0.00016968,2]
[403953427,1769689842908,-1783.36,0.00016976,2]
[403953428,1769689842917,-623.21613332,0.0001698,2]
[403953429,1769689842927,-500.0,0.0001698,2]
[403953430,1769689842936,-500.0,0.0001698,2]
[403953431,1769689842944,-150.0,0.0001698,2]
[403953432,1769689842953,-150.0,0.0001698,2]
[403953433,1769689842964,-500.0,0.0001698,2]
[403953434,1769689842979,-500.0,0.0001698,2]
[403953435,1769689842993,-150.0,0.0001698,2]
[403953436,1769689843004,-153.50697383,0.0001698,2]
[403953437,1769689843015,-176.88485057,0.0001698,2]
[403953438,1769689843026,-597.0,0.0001698,2]
[403953439,1769689843036,-612.28691329,0.0001698,2]
[403953440,1769689843047,-500.0,0.0001698,2]
[403953441,1769689843056,-240.49848305,0.0001698,2]
[403953442,1769689843066,-479.0,0.0001698,2]
[403953443,1769689843078,-500.0,0.0001698,2]
[403953444,1769689843089,-500.0,0.0001698,2]
[403953445,1769689843098,-500.0,0.0001698,2]
[403953446,1769689843108,-500.0,0.0001698,2]
[403953447,1769689843117,-500.0,0.0001698,2]
[403953448,1769689843125,-500.0,0.0001698,2]
[403953449,1769689843134,-431.0,0.0001698,2]
[403953450,1769689843143,-200.0,0.00016983,2]
[403953451,1769689843152,-997.09,0.00016998,2]
[403953452,1769689843161,-500.0,0.00016998,2]
[403953453,1769689843169,-79644.99495843,0.00017,2]
[403953454,1769689843179,-160.168884,0.00017,2]
[403953455,1769689843189,-151.0,0.00017,2]
[403953456,1769689843199,-151.0,0.00017,2]
[403953457,1769689843208,-151.0,0.00017,2]
[403953458,1769689843219,-151.0,0.00017,2]
[403953459,1769689843229,-151.0,0.00017,2]
[403953460,1769689843239,-379.63759782,0.00017035,2]
[403953461,1769689843249,-500.0,0.00017035,2]
[403953463,1769689843259,-150.0,0.00017035,2]
[403953464,1769689843269,-252.34395111,0.00017035,2]
[403953465,1769689843278,-500.0,0.00017035,2]
[403953466,1769689843288,-500.0,0.00017035,2]
[403953467,1769689843297,-290.22964713,0.00017035,2]
[403953468,1769689843307,-597.0,0.00017035,2]
[403953470,1769689843316,-500.0,0.00017035,2]
[403953471,1769689843325,-479.0,0.00017035,2]
[403953473,1769689843335,-500.0,0.00017035,2]
[403953476,1769689843345,-500.0,0.00017035,2]
[403953477,1769689843359,-500.0,0.00017035,2]
[403953478,1769689843369,-500.0,0.00017035,2]
[403953479,1769689843379,-500.0,0.00017035,2]
[403953480,1769689843388,-500.0,0.00017035,2]
[403953481,1769689843398,-431.0,0.00017035,2]
[403953482,1769689843408,-856.42223658,0.00017045,2]
[403953483,1769689843418,-1500.0,0.00017068,2]
[403953484,1769689843427,-1500.0,0.00017068,2]
[403953485,1769689843437,-1500.0,0.00017068,2]
[403953486,1769689843446,-1337.06630886,0.00017068,2]
[403953487,1769689843456,-1500.0,0.00017068,2]
[403953488,1769689843465,-1119.40917961,0.00017068,2]
[403953490,1769689843477,-1500.0,0.00017068,2]
[403953491,1769689843488,-845.01744062,0.00017068,2]
[403953492,1769689843497,-1500.0,0.00017068,2]
[403953493,1769689843506,-460.0,0.00017068,2]
[403953494,1769689843516,-1500.0,0.00017068,2]
[403953495,1769689843526,-500.0,0.0001707,2]
[403953496,1769689843536,-500.0,0.0001709,2]
[403953497,1769689843546,-250.0,0.0001709,2]
[403953498,1769689843555,-500.0,0.0001709,2]
[403953499,1769689843564,-500.0,0.0001709,2]
[403953500,1769689843574,-597.0,0.0001709,2]
[403953501,1769689843583,-500.0,0.0001709,2]
[403953502,1769689843593,-479.0,0.0001709,2]
[403953503,1769689843603,-500.0,0.0001709,2]
[403953504,1769689843612,-500.0,0.0001709,2]
[403953505,1769689843622,-500.0,0.0001709,2]
[403953506,1769689843632,-500.0,0.0001709,2]
[403953507,1769689843642,-500.0,0.0001709,2]
[403953508,1769689843651,-431.0,0.0001709,2]
[403953509,1769689843661,-2248.07035412,0.000171,2]
[403953510,1769689843671,-5932.69323247,0.000171,2]
[403953511,1769689843682,-9094.94033796,0.00017101,2]
[403953512,1769689843693,-235.44707252,0.00017101,2]
[403953513,1769689843708,-990.12,0.00017112,2]
[403953514,1769689843717,-4248.68276804,0.00017112,2]
[403953515,1769689843727,-500.0,0.00017144,2]
[403953516,1769689843738,-500.0,0.00017145,2]
[403953517,1769689843748,-500.0,0.00017145,2]
[403953518,1769689843759,-500.0,0.00017145,2]
[403953519,1769689843768,-597.0,0.00017145,2]
[403953520,1769689843778,-500.0,0.00017145,2]
[403953521,1769689843788,-479.0,0.00017145,2]
[403953522,1769689843798,-500.0,0.00017145,2]
[403953523,1769689843807,-500.0,0.00017145,2]
[403953524,1769689843819,-500.0,0.00017145,2]
[403953525,1769689843828,-500.0,0.00017145,2]
[403953526,1769689843838,-500.0,0.00017145,2]
[403953527,1769689843848,-431.0,0.00017145,2]
[403953528,1769689843858,-604.58205548,0.00017169,2]
[403953529,1769689843868,-500.0,0.00017169,2]
[403953530,1769689843878,-858.62,0.00017169,2]
[403953531,1769689843888,-500.0,0.00017169,2]
[403953532,1769689843901,-322.6107,0.0001717,2]
[403953533,1769689843911,-250.0,0.0001717,2]
[403953534,1769689843920,-250.0,0.0001717,2]
[403953535,1769689843930,-578.20924308,0.0001717,2]
[403953536,1769689843940,-209.40437684,0.0001717,2]
[403953537,1769689843950,-250.0,0.0001717,2]
[403953538,1769689843959,-500.0,0.0001717,2]
[403953539,1769689843970,-250.0,0.0001717,2]
[403953540,1769689843981,-250.0,0.0001717,2]
[403953541,1769689843993,-250.0,0.0001717,2]
[403953542,1769689844004,-500.0,0.0001717,2]
[403953543,1769689844015,-250.0,0.0001717,2]
[403953544,1769689844026,-250.0,0.0001717,2]
[403953545,1769689844036,-500.0,0.0001717,2]
[403953546,1769689844047,-250.0,0.0001717,2]
[403953547,1769689844056,-500.0,0.0001717,2]
[403953548,1769689844066,-250.0,0.0001717,2]
[403953549,1769689844075,-266.88383045,0.0001717,2]
[403953550,1769689844089,-250.0,0.0001717,2]
[403953551,1769689844098,-500.0,0.0001717,2]
[403953552,1769689844110,-500.0,0.0001717,2]
[403953553,1769689844120,-500.0,0.0001717,2]
[403953554,1769689844131,-500.0,0.0001717,2]
[403953555,1769689844142,-250.0,0.0001717,2]
[403953556,1769689844151,-500.0,0.0001717,2]
[403953557,1769689844160,-500.0,0.0001717,2]
[403953558,1769689844170,-250.0,0.0001717,2]
[403953559,1769689844179,-500.0,0.0001717,2]
[403953560,1769689844189,-500.0,0.0001717,2]
[403953561,1769689844198,-500.0,0.0001717,2]
[403953562,1769689844208,-250.0,0.0001717,2]
[403953563,1769689844217,-500.0,0.0001717,2]
[403953564,1769689844226,-500.0,0.0001717,2]
[403953565,1769689844236,-500.0,0.0001717,2]
[403953566,1769689844246,-250.0,0.0001717,2]
[403953567,1769689844255,-500.0,0.0001717,2]
[403953568,1769689844265,-500.0,0.0001717,2]
[403953569,1769689844277,-500.0,0.0001717,2]
[403953570,1769689844286,-250.0,0.0001717,2]
[403953571,1769689844296,-500.0,0.0001717,2]
[403953572,1769689844306,-582.77228948,0.0001717,2]
[403953573,1769689844316,-500.0,0.0001717,2]
[403953574,1769689844325,-500.0,0.0001717,2]
[403953575,1769689844335,-500.0,0.0001717,2]
[403953576,1769689844344,-500.0,0.0001717,2]
[403953577,1769689844354,-500.0,0.0001717,2]
[403953578,1769689844364,-500.0,0.0001717,2]
[403953579,1769689844373,-500.0,0.0001717,2]
[403953580,1769689844383,-500.0,0.0001717,2]
[403953581,1769689844393,-721.12765535,0.0001717,2]
[403953582,1769689844402,-500.0,0.0001717,2]
[403953583,1769689844412,-500.0,0.0001717,2]
[403953584,1769689844422,-500.0,0.0001717,2]
[403953585,1769689844431,-1000.0,0.0001717,2]
[403953586,1769689844443,-500.0,0.0001717,2]
[403953587,1769689844454,-1000.0,0.0001717,2]
[403953588,1769689844463,-500.0,0.0001717,2]
[403953589,1769689844473,-1000.0,0.0001717,2]
[403953590,1769689844483,-500.0,0.0001717,2]
[403953591,1769689844493,-1000.0,0.0001717,2]
[403953592,1769689844502,-209.40437684,0.0001717,2]
[403953593,1769689844512,-500.0,0.0001717,2]
[403953594,1769689844522,-1000.0,0.0001717,2]
[403953595,1769689844531,-500.0,0.0001717,2]
[403953596,1769689844541,-1000.0,0.0001717,2]
[403953597,1769689844550,-500.0,0.0001717,2]
[403953598,1769689844560,-1000.0,0.0001717,2]
[403953599,1769689844569,-500.0,0.0001717,2]
[403953600,1769689844578,-1000.0,0.0001717,2]
[403953601,1769689844588,-1000.0,0.0001717,2]
[403953602,1769689844597,-1000.0,0.0001717,2]
[403953603,1769689844606,-1000.0,0.0001717,2]
[403953604,1769689844616,-209.40437684,0.0001717,2]
[403953605,1769689844626,-250.0,0.0001717,2]
[403953606,1769689844635,-250.0,0.0001717,2]
[403953607,1769689844645,-174.61919141,0.0001717,2]
[403953608,1769689844660,-250.0,0.0001717,2]
[403953609,1769689844675,-250.0,0.0001717,2]
[403953610,1769689844684,-250.0,0.0001717,2]
[403953611,1769689844695,-250.0,0.0001717,2]
[403953612,1769689844705,-250.0,0.0001717,2]
[403953613,1769689844714,-250.0,0.0001717,2]
[403953614,1769689844724,-250.0,0.0001717,2]
[403953615,1769689844734,-250.0,0.0001717,2]
[403953616,1769689844744,-250.0,0.0001717,2]
[403953617,1769689844753,-250.0,0.0001717,2]
[403953618,1769689844763,-250.0,0.0001717,2]
[403953619,1769689844772,-250.0,0.0001717,2]
[403953620,1769689844782,-250.0,0.0001717,2]
[403953621,1769689844792,-250.0,0.0001717,2]
[403953622,1769689844802,-250.0,0.0001717,2]
[403953623,1769689844811,-250.0,0.0001717,2]
[403953624,1769689844821,-250.0,0.0001717,2]
[403953625,1769689844830,-250.0,0.0001717,2]
[403953626,1769689844840,-250.0,0.0001717,2]
[403953627,1769689844850,-500.0,0.0001717,2]
[403953628,1769689844859,-250.0,0.0001717,2]
[403953631,1769689845313,-500.0,0.0001717,2]
[403953632,1769689845380,-151.0,0.0001717,2]
[403953633,1769689845390,-500.0,0.0001717,2]
[403953634,1769689845402,-500.0,0.0001717,2]
[403953635,1769689845411,-500.0,0.0001717,2]
[403953636,1769689845420,-500.0,0.0001717,2]
[403953637,1769689845433,-250.0,0.0001717,2]
[403953638,1769689845443,-250.0,0.0001717,2]
[403953639,1769689845452,-500.0,0.0001717,2]
[403953640,1769689845462,-250.0,0.0001717,2]
[403953641,1769689845472,-500.0,0.0001717,2]
[403953642,1769689845482,-250.0,0.0001717,2]
[403953643,1769689845491,-500.0,0.0001717,2]
[403953644,1769689845501,-250.0,0.0001717,2]
[403953645,1769689845511,-500.0,0.0001717,2]
[403953646,1769689845520,-500.0,0.0001717,2]
[403953647,1769689845529,-250.0,0.0001717,2]
[403953648,1769689845540,-250.0,0.0001717,2]
[403953649,1769689845550,-250.0,0.0001717,2]
[403953650,1769689845559,-151.0,0.0001717,2]
[403953651,1769689845568,-250.0,0.0001717,2]
[403953652,1769689845577,-250.0,0.0001717,2]
[403953653,1769689845587,-250.0,0.0001717,2]
[403953654,1769689845596,-854.2589148,0.0001717,2]
[403953655,1769689845605,-209.40437684,0.0001717,2]
[403953656,1769689845615,-500.0,0.000172,2]
[403953657,1769689845625,-500.0,0.000172,2]
[403953658,1769689845634,-500.0,0.000172,2]
[403953659,1769689845644,-597.0,0.000172,2]
[403953660,1769689845653,-500.0,0.000172,2]
[403953661,1769689845662,-479.0,0.000172,2]
[403953662,1769689845672,-500.0,0.000172,2]
[403953663,1769689845681,-500.0,0.000172,2]
[403953664,1769689845690,-309.30429848,0.000172,2]
[403953665,1769689845699,-500.0,0.000172,2]
[403953666,1769689845709,-500.0,0.000172,2]
[403953667,1769689845718,-431.0,0.000172,2]
[403953668,1769689845728,-25288.45216244,0.00017201,2]
[403953669,1769689845737,-368.14,0.00017224,2]
[403953670,1769689845746,-217.15233878,0.00017225,2]
[403953671,1769689845756,-276.00666849,0.00017241,2]
[403953672,1769689845765,-1783.36,0.0001725,2]
[403953673,1769689845775,-500.0,0.00017254,2]
[403953674,1769689845784,-500.0,0.00017254,2]
[403953675,1769689845793,-500.0,0.00017254,2]
[403953676,1769689845806,-597.0,0.00017254,2]
[403953677,1769689845816,-500.0,0.00017254,2]
[403953678,1769689845825,-479.0,0.00017254,2]
[403953679,1769689845835,-500.0,0.00017254,2]
[403953680,1769689845844,-500.0,0.00017254,2]
[403953681,1769689845854,-500.0,0.00017254,2]
[403953682,1769689845863,-500.0,0.00017254,2]
[403953683,1769689845873,-431.0,0.00017254,2]
[403953684,1769689845883,-10000.0,0.00017264,2]
[403953685,1769689845892,-1000.0,0.00017273,2]
[403953686,1769689845902,-225.18697532,0.0001728,2]
[403953687,1769689845911,-500.0,0.00017299,2]
[403953688,1769689845920,-500.0,0.00017299,2]
[403953689,1769689845930,-512.2,0.00017299,2]
[403953690,1769689845940,-500.0,0.00017299,2]
[403953691,1769689845949,-500.0,0.00017309,2]
[403953692,1769689845960,-500.0,0.00017309,2]
[403953693,1769689845969,-460.45544005,0.00017309,2]
[403953694,1769689845983,-597.0,0.00017309,2]
[403953695,1769689845992,-500.0,0.00017309,2]
[403953696,1769689846002,-479.0,0.00017309,2]
[403953697,1769689846011,-500.0,0.00017309,2]
[403953698,1769689846022,-500.0,0.00017309,2]
[403953699,1769689846031,-500.0,0.00017309,2]
[403953700,1769689846041,-431.0,0.00017309,2]
[403953701,1769689846051,-500.0,0.00017309,2]
[403953702,1769689846061,-1000.0,0.00017331,2]
[403953703,1769689846071,-206.70057521,0.00017333,2]
[403953704,1769689846080,-233.51889341,0.00017335,2]
[403953705,1769689846089,-500.0,0.00017344,2]
[403953706,1769689846099,-500.0,0.00017364,2]
[403953707,1769689846108,-375.67688444,0.00017364,2]
[403953708,1769689846118,-597.0,0.00017364,2]
[403953709,1769689846127,-500.0,0.00017364,2]
[403953710,1769689846136,-479.0,0.00017364,2]
[403953711,1769689846146,-500.0,0.00017364,2]
[403953712,1769689846155,-462.54801825,0.00017364,2]
[403953713,1769689846165,-500.0,0.00017364,2]
[403953714,1769689846174,-431.0,0.00017364,2]
[403953715,1769689846183,-500.0,0.00017364,2]
[403953716,1769689846197,-1066.70449655,0.00017376,2]
[403953717,1769689846207,-165.61,0.00017379,2]
[403953718,1769689846217,-280.46,0.00017386,2]
[403953719,1769689846227,-242.15909246,0.0001739,2]
[403953720,1769689846237,-152.36,0.000174,2]
[403953721,1769689846248,-152.36,0.000174,2]
[403953722,1769689846258,-33000.0,0.000174,6]
[403953723,1769689846268,-500.0,0.00017419,2]
[403953724,1769689846278,-597.0,0.00017419,2]
[403953725,1769689846288,-500.0,0.00017419,2]
[403953726,1769689846298,-479.0,0.00017419,2]
[403953727,1769689846308,-500.0,0.00017419,2]
[403953728,1769689846318,-500.0,0.00017419,2]
[403953729,1769689846327,-431.0,0.00017419,2]
[403953730,1769689846338,-500.0,0.00017419,2]
[403953731,1769689846347,-4286.0,0.00017425,2]
[403953732,1769689846357,-620.13152007,0.00017433,2]
[403953733,1769689846367,-858.62,0.00017433,2]
[403953734,1769689846377,-500.0,0.00017433,2]
[403953735,1769689846388,-25288.45216244,0.00017434,2]
[403953736,1769689846398,-500.0,0.00017435,2]
[403953737,1769689846408,-342.73505273,0.00017435,2]
[403953738,1769689846418,-251.11897888,0.00017445,2]
[403953740,1769689846428,-856.42223656,0.00017473,2]
[403953741,1769689846439,-500.0,0.00017474,2]
[403953742,1769689846451,-597.0,0.00017474,2]
[403953743,1769689846461,-604.47218601,0.00017474,2]
[403953744,1769689846471,-479.0,0.00017474,2]
[403953745,1769689846480,-500.0,0.00017474,2]
[403953746,1769689846490,-500.0,0.00017474,2]
[403953747,1769689846500,-431.0,0.00017474,2]
[403953748,1769689846509,-247.11434116,0.00017474,2]
[403953749,1769689846519,-381.0,0.00017493,2]
[403953750,1769689846529,-260.4103811,0.000175,2]
[403953751,1769689846540,-151.0,0.000175,2]
[403953752,1769689846549,-6600.0,0.000175,6]
[403953754,1769689846563,-9094.94033794,0.00017501,2]
[403953755,1769689846573,-235.44707252,0.00017501,2]
[403953757,1769689846583,-384.0,0.00017506,2]
[403953758,1769689846593,-4248.68276804,0.00017506,2]
[403953759,1769689846602,-165.59,0.00017507,2]
[403953760,1769689846612,-384.0,0.0001752,2]
[403953761,1769689846621,-384.0,0.00017523,2]
[403953762,1769689846631,-1783.36,0.00017524,2]
[403953763,1769689846641,-500.0,0.00017528,2]
[403953765,1769689846651,-597.0,0.00017528,2]
[403953766,1769689846661,-479.0,0.00017528,2]
[403953767,1769689846671,-500.0,0.00017528,2]
[403953768,1769689846680,-500.0,0.00017528,2]
[403953769,1769689846690,-431.0,0.00017528,2]
[403953770,1769689846699,-384.0,0.00017534,2]
[403953771,1769689846710,-1600.0,0.00017534,2]
[403953772,1769689846720,-384.0,0.00017553,2]
[403953773,1769689846731,-270.0455652,0.00017555,2]
[403953774,1769689846741,-368.14,0.00017562,2]
[403953775,1769689846751,-384.0,0.00017564,2]
[403953776,1769689846762,-384.0,0.00017582,2]
[403953777,1769689846772,-500.0,0.00017583,2]
[403953778,1769689846782,-597.0,0.00017583,2]
[403953779,1769689846791,-479.0,0.00017583,2]
[403953780,1769689846801,-500.0,0.00017583,2]
[403953781,1769689846811,-500.0,0.00017583,2]
[403953782,1769689846822,-431.0,0.00017583,2]
[403953783,1769689846831,-384.0,0.00017587,2]
[403953784,1769689846841,-6600.0,0.000176,6]
[403953785,1769689846851,-10465.97408668,0.000176,2]
[403953786,1769689846862,-280.03725112,0.0001761,2]
[403953787,1769689846873,-2000.0,0.00017616,2]
[403953788,1769689846883,-449.67214595,0.00017616,2]
[403953789,1769689846893,-1219.30410898,0.00017616,2]
[403953790,1769689846903,-1000.0,0.00017616,2]
[403953791,1769689846913,-2000.0,0.00017616,2]
[403953792,1769689846922,-1004.61384517,0.00017616,2]
[403953793,1769689846934,-2000.0,0.00017616,2]
[403953794,1769689846944,-247.13748225,0.00017618,2]
[403953795,1769689846953,-384.0,0.00017634,2]
[403953796,1769689846963,-500.0,0.00017638,2]
[403953797,1769689846974,-597.0,0.00017638,2]
[403953798,1769689846984,-479.0,0.00017638,2]
[403953799,1769689846994,-500.0,0.00017638,2]
[403953800,1769689847003,-500.0,0.00017638,2]
[403953801,1769689847015,-431.0,0.00017638,2]
[403953802,1769689847025,-1944.01481154,0.00017657,2]
[403953803,1769689847035,-384.0,0.00017664,2]
[403953804,1769689847045,-151.0,0.00017664,2]
[403953805,1769689847055,-290.39862941,0.00017665,2]
[403953806,1769689847066,-51329.39217719,0.00017667,2]
[403953807,1769689847076,-150.0,0.00017667,2]
[403953808,1769689847086,-25288.45216244,0.00017667,2]
[403953809,1769689847097,-398.32,0.00017677,2]
[403953810,1769689847107,-4286.0,0.00017678,2]
[403953811,1769689847117,-165.61,0.00017689,2]
[403953812,1769689847128,-500.0,0.00017693,2]
[403953813,1769689847138,-597.0,0.00017693,2]
[403953814,1769689847152,-479.0,0.00017693,2]
[403953815,1769689847161,-500.0,0.00017693,2]
[403953816,1769689847171,-500.0,0.00017693,2]
[403953817,1769689847180,-431.0,0.00017693,2]
[403953818,1769689847189,-6600.0,0.000177,6]
[403953819,1769689847198,-280.46,0.00017704,2]
[403953820,1769689847208,-990.12,0.00017709,2]
[403953821,1769689847217,-384.0,0.00017717,2]
[403953822,1769689847226,-217.15233878,0.00017718,2]
[403953823,1769689847235,-217.15233878,0.00017718,2]
[403953824,1769689847244,-181.08010149,0.00017718,2]
[403953825,1769689847254,-151.0,0.00017718,2]
[403953826,1769689847263,-151.6879126,0.00017718,2]
[403953827,1769689847272,-885.86649465,0.00017718,2]
[403953828,1769689847282,-217.15233878,0.00017718,2]
[403953829,1769689847291,-301.1433787,0.0001772,2]
[403953830,1769689847303,-355.0,0.00017723,2]
[403953831,1769689847315,-4286.0,0.00017738,2]
[403953832,1769689847327,-500.0,0.00017748,2]
[403953833,1769689847339,-597.0,0.00017748,2]
[403953834,1769689847348,-479.0,0.00017748,2]
[403953835,1769689847358,-500.0,0.00017748,2]
[403953836,1769689847367,-571.64096607,0.00017748,2]
[403953837,1769689847378,-431.0,0.00017748,2]
[403953838,1769689847387,-25000.0,0.00017768,3]
[403953839,1769689847396,-25000.0,0.00017777,3]
[403953840,1769689847407,-858.62,0.00017785,2]
[403953841,1769689847417,-500.0,0.00017785,2]
[403953842,1769689847427,-25000.0,0.00017786,3]
[403953843,1769689847436,-4286.0,0.00017791,2]
[403953844,1769689847446,-25000.0,0.00017794,3]
[403953845,1769689847455,-4286.0,0.00017796,2]
[403953846,1769689847466,-1783.36,0.00017798,2]
[403953847,1769689847475,-997.09,0.00017799,2]
[403953848,1769689847484,-500.0,0.00017799,2]
[403953849,1769689847494,-151.0,0.00017799,2]
[403953850,1769689847503,-151.0,0.00017799,2]
[403953851,1769689847513,-195.2295,0.00017799,2]
[403953852,1769689847522,-151.0,0.00017799,2]
[403953853,1769689847531,-151.0,0.00017799,2]
[403953854,1769689847540,-6600.0,0.000178,6]
[403953855,1769689847550,-606.0,0.00017802,2]
[403953856,1769689847559,-597.0,0.00017802,2]
[403953857,1769689847568,-479.0,0.00017802,2]
[403953858,1769689847578,-388.59501602,0.00017802,2]
[403953859,1769689847589,-431.0,0.00017802,2]
[403953860,1769689847599,-384.0,0.00017803,2]
[403953861,1769689847608,-25000.0,0.00017803,3]
[403953862,1769689847619,-500.0,0.00017808,2]
[403953863,1769689847628,-361.0,0.00017809,2]
[403953864,1769689847637,-25000.0,0.00017812,3]
[403953865,1769689847647,-151.0,0.00017812,2]
[403953866,1769689847656,-418.275575,0.00017812,2]
[403953867,1769689847665,-418.275575,0.00017812,2]
[403953868,1769689847675,-418.275575,0.00017812,2]
[403953869,1769689847684,-418.275575,0.00017812,2]
[403953870,1769689847693,-151.0,0.00017812,2]
[403953871,1769689847703,-151.0,0.00017812,2]
[403953872,1769689847712,-151.0,0.00017812,2]
[403953873,1769689847721,-181.381648,0.00017812,2]
[403953874,1769689847731,-25000.0,0.00017821,3]
[403953875,1769689847864,-384.0,0.00017828,2]
[403953876,1769689847873,-25000.0,0.0001783,3]
[403953877,1769689847884,-151.0,0.00017838,2]
[403953878,1769689847893,-151.0,0.00017838,2]
[403953879,1769689847902,-151.0,0.00017838,2]
[403953880,1769689847911,-25000.0,0.00017838,3]
[403953881,1769689847920,-500.0,0.00017846,2]
[403953882,1769689847928,-500.0,0.00017846,2]
[403953883,1769689847937,-512.2,0.00017846,2]